fUST/lending_fUST_20240501
["ID","MTS","AMOUNT","RATE_DAILY","PERIOD"]
[325195688,1714572667163,-500.0,0.0005589,120]
[325195689,1714572667176,-503.62873282,0.0005589,120]
[325195690,1714572667186,-500.0,0.0005589,120]
[325195691,1714572667196,-500.0,0.0005589,120]
[325195692,1714572667206,-500.0,0.0005589,120]
[325195693,1714572667216,-500.0,0.0005589,120]
[325195694,1714572667225,-500.0,0.0005589,120]
[325195695,1714572667235,-749.91,0.0005589,120]
[325195696,1714572667245,-515.08,0.0005589,120]
[325195697,1714572667254,-555.12919259,0.0005589,120]
[325195698,1714572667264,-500.0,0.0005589,120]
[325195699,1714572667273,-1107.24,0.0005589,120]
[325195700,1714572667283,-500.0,0.0005589,120]
[325195701,1714572667293,-500.0,0.0005589,120]
[325195702,1714572667302,-500.0,0.0005589,120]
[325195703,1714572667312,-500.0,0.0005589,120]
[325195704,1714572667322,-500.0,0.0005589,120]
[325195705,1714572667331,-500.0,0.0005589,120]
[325195706,1714572667341,-989.44,0.0005589,120]
[325195707,1714572667350,-500.0,0.0005589,120]
[325195708,1714572667360,-672.45,0.0005589,120]
[325195709,1714572667369,-546.87,0.0005589,60]
[325195710,1714572667379,-500.0,0.0005589,120]
[325195711,1714572667391,-501.35121444,0.0005589,120]
[325195712,1714572667400,-197.38624522,0.0005589,120]
[325195713,1714572667410,-500.0,0.0005589,120]
[325195714,1714572667419,-500.0,0.0005589,120]
[325195715,1714572667428,-500.0,0.0005589,120]
[325195716,1714572667437,-15331.91,0.0005589,120]
[325195717,1714572667447,-500.0,0.0005589,120]
[325195718,1714572667456,-500.0,0.0005589,120]
[325195719,1714572667466,-500.0,0.0005589,120]
[325195720,1714572667475,-1460.27,0.0005589,120]
[325195721,1714572667484,-500.0,0.0005589,120]
[325195722,1714572667493,-500.0,0.0005589,120]
[325195723,1714572667502,-500.0,0.0005589,120]
[325195724,1714572667511,-500.0,0.0005589,120]
[325195725,1714572667520,-500.0,0.0005589,120]
[325195726,1714572667530,-3286.58,0.0005589,2]
[325195727,1714572667539,-500.0,0.0005589,120]
[325195728,1714572667548,-500.0,0.0005589,120]
[325195729,1714572667557,-501.60155306,0.0005589,120]
[325195730,1714572667567,-514.56,0.0005589,120]
[325195731,1714572667576,-500.0,0.0005589,120]
[325195732,1714572667585,-671.46,0.0005589,120]
[325195733,1714572667594,-500.0,0.0005589,120]
[325195734,1714572667604,-500.0,0.0005589,120]
[325195735,1714572667613,-500.0,0.0005589,120]
[325195736,1714572667622,-2544.3,0.0005589,120]
[325195737,1714572667634,-1492.06,0.0005589,120]
[325195738,1714572667643,-500.0,0.0005589,120]
[325195739,1714572667652,-500.0,0.0005589,120]
[325195740,1714572667663,-445.77084145,0.0005589,120]
[325195741,1714572667672,-500.0,0.0005589,120]
[325195742,1714572667681,-500.0,0.0005589,120]
[325195743,1714572667690,-11017.25,0.0005589,120]
[325195744,1714572667700,-500.0,0.0005589,120]
[325195745,1714572667709,-500.0,0.0005589,120]
[325195746,1714572667719,-500.0,0.0005589,120]
[325195747,1714572667728,-1610.35,0.0005589,120]
[325195748,1714572667737,-500.0,0.0005589,120]
[325195749,1714572667747,-500.0,0.0005589,120]
[325195750,1714572667756,-1825.83,0.0005589,120]
[325195751,1714572667766,-500.0,0.0005589,120]
[325195752,1714572667858,-823.85,0.0005589,120]
[325195753,1714572667875,-500.0,0.0005589,120]
[325195754,1714572667887,-500.0,0.0005589,120]
[325195755,1714572667897,-494.60499216,0.0005589,120]
[325195756,1714572667906,-500.0,0.0005589,120]
[325195757,1714572667916,-1779.68,0.0005589,120]
[325195758,1714572667925,-500.0,0.0005589,120]
[325195759,1714572667934,-500.0,0.0005589,120]
[325195760,1714572667944,-500.0,0.0005589,120]
[325195761,1714572667958,-559.38,0.0005589,120]
[325195762,1714572667967,-500.0,0.0005589,120]
[325195763,1714572667977,-500.0,0.0005589,120]
[325195764,1714572667986,-500.0,0.0005589,120]
[325195765,1714572667995,-500.0,0.0005589,120]
[325195766,1714572668005,-500.0,0.0005589,120]
[325195767,1714572668014,-500.0,0.0005589,120]
[325195768,1714572668024,-692.14,0.0005589,120]
[325195769,1714572668033,-512.65594973,0.0005589,120]
[325195770,1714572668043,-1846.2,0.0005589,120]
[325195771,1714572668053,-1149.21,0.0005589,21]
[325195772,1714572668062,-319.82131593,0.0005589,120]
[325195773,1714572668071,-500.0,0.0005589,120]
[325195774,1714572668080,-548.41,0.0005589,120]
[325195775,1714572668090,-500.0,0.0005589,120]
[325195776,1714572668099,-500.0,0.0005589,120]
[325195777,1714572668108,-511.21,0.0005589,120]
[325195778,1714572668118,-500.0,0.0005589,120]
[325195779,1714572668127,-2131.16,0.0005589,120]
[325195780,1714572668139,-500.0,0.0005589,120]
[325195781,1714572668148,-1147.1,0.0005589,120]
[325195782,1714572668158,-1609.49,0.0005589,120]
[325195783,1714572668172,-6055.3,0.0005589,120]
[325195784,1714572668181,-500.0,0.0005589,120]
[325195785,1714572668190,-500.0,0.0005589,120]
[325195786,1714572668200,-500.0,0.0005589,120]
[325195787,1714572668210,-543.5279668,0.0005589,7]
[325195788,1714572668219,-500.0,0.0005589,120]
[325195789,1714572668229,-1668.77,0.0005589,120]
[325195790,1714572668239,-592.33,0.0005589,120]
[325195791,1714572668248,-500.0,0.0005589,120]
[325195792,1714572668259,-1156.16,0.0005589,120]
[325195793,1714572668268,-501.41509149,0.0005589,120]
[325195794,1714572668278,-2002.71,0.0005589,120]
[325195795,1714572668287,-500.0,0.0005589,120]
[325195796,1714572668297,-500.0,0.0005589,120]
[325195797,1714572668306,-777.36,0.0005589,120]
[325195798,1714572668315,-500.0,0.0005589,120]
[325195799,1714572668324,-1214.19,0.0005589,120]
[325195800,1714572668333,-500.0,0.0005589,120]
[325195801,1714572668342,-603.09,0.0005589,120]
[325195802,1714572668351,-500.0,0.0005589,120]
[325195803,1714572668360,-609.08,0.0005589,120]
[325195804,1714572668369,-500.0,0.0005589,120]
[325195805,1714572668378,-500.0,0.0005589,120]
[325195806,1714572668390,-500.0,0.0005589,120]
[325195807,1714572668400,-500.0,0.0005589,120]
[325195808,1714572668408,-500.0,0.0005589,120]
[325195809,1714572668418,-1476.3,0.0005589,120]
[325195810,1714572668427,-500.0,0.0005589,120]
[325195811,1714572668437,-802.35,0.0005589,120]
[325195812,1714572668446,-5816.73,0.0005589,30]
[325195813,1714572668455,-500.0,0.0005589,120]
[325195814,1714572668464,-554.12,0.0005589,120]
[325195815,1714572668473,-500.0,0.0005589,120]
[325195816,1714572668483,-500.0,0.0005589,120]
[325195817,1714572668492,-500.0,0.0005589,120]
[325195818,1714572668510,-500.0,0.0005589,120]
[325195819,1714572668525,-500.0,0.0005589,120]
[325195820,1714572668544,-863.59,0.0005589,120]
[325195821,1714572668563,-791.02,0.0005589,120]
[325195822,1714572668582,-6727.11,0.0005589,120]
[325195823,1714572668600,-500.0,0.0005589,120]
[325195824,1714572668615,-500.0,0.0005589,120]
[325195825,1714572668630,-500.0,0.0005589,120]
[325195826,1714572668649,-273.91594634,0.0005589,120]
[325195827,1714572668669,-748.69,0.0005589,120]
[325195828,1714572668682,-500.0,0.0005589,120]
[325195829,1714572668699,-562.06857897,0.0005589,120]
[325195830,1714572668714,-326.5466235,0.0005589,120]
[325195831,1714572668730,-500.0,0.0005589,120]
[325195832,1714572668745,-500.51115075,0.0005589,120]
[325195833,1714572668760,-3192.87,0.0005589,120]
[325195834,1714572668776,-500.0,0.0005589,120]
[325195835,1714572668791,-1062.83,0.0005589,120]
[325195836,1714572668806,-23207.15,0.0005589,120]
[325195837,1714572668821,-772.53,0.0005589,120]
[325195838,1714572668836,-500.0,0.0005589,120]
[325195839,1714572668851,-500.0,0.0005589,120]
[325195840,1714572668866,-500.0,0.0005589,120]
[325195841,1714572668881,-555.29371673,0.0005589,120]
[325195842,1714572668896,-8045.56,0.0005589,120]
[325195843,1714572668911,-500.0,0.0005589,120]
[325195844,1714572668925,-1945.48,0.0005589,120]
[325195845,1714572668941,-500.0,0.0005589,120]
[325195846,1714572668956,-500.0,0.0005589,120]
[325195847,1714572668971,-1954.15,0.0005589,120]
[325195848,1714572668987,-313.28276725,0.0005589,120]
[325195849,1714572669001,-1471.13,0.0005589,120]
[325195850,1714572669015,-500.0,0.0005589,120]
[325195851,1714572669029,-881.83,0.0005589,120]
[325195852,1714572669043,-500.0,0.0005589,120]
[325195853,1714572669058,-507.12984672,0.0005589,120]
[325195854,1714572669072,-775.47,0.0005589,120]
[325195855,1714572669086,-1101.12,0.0005589,120]
[325195856,1714572669101,-2965.72,0.0005589,120]
[325195857,1714572669115,-719.83,0.0005589,120]
[325195858,1714572669130,-1429.92,0.0005589,120]
[325195859,1714572669147,-500.0,0.0005589,120]
[325195860,1714572669161,-500.0,0.0005589,120]
[325195861,1714572669180,-601.05,0.0005589,120]
[325195862,1714572669195,-760.17,0.0005589,120]
[325195863,1714572669210,-500.0,0.0005589,120]
[325195864,1714572669224,-500.0,0.0005589,120]
[325195865,1714572669241,-500.0,0.0005589,120]
[325195866,1714572669256,-500.0,0.0005589,120]
[325195867,1714572669270,-928.81,0.0005589,120]
[325195868,1714572669285,-500.0,0.0005589,120]
[325195869,1714572669299,-911.4,0.0005589,120]
[325195870,1714572669314,-514.42,0.0005589,120]
[325195871,1714572669329,-500.0,0.0005589,120]
[325195872,1714572669344,-500.0,0.0005589,120]
[325195873,1714572669359,-500.0,0.0005589,120]
[325195874,1714572669374,-500.0,0.0005589,120]
[325195875,1714572669390,-595.81,0.0005589,120]
[325195876,1714572669405,-500.0,0.0005589,120]
[325195877,1714572669420,-546.33,0.0005589,120]
[325195878,1714572669436,-1330.07,0.0005589,120]
[325195879,1714572669451,-500.0,0.0005589,120]
[325195880,1714572669467,-500.0,0.0005589,120]
[325195881,1714572669480,-500.0,0.0005589,120]
[325195882,1714572669495,-500.0,0.0005589,120]
[325195883,1714572669505,-734.7,0.0005589,120]
[325195884,1714572669644,-500.0,0.0005589,120]
[325195885,1714572669667,-517.3,0.0005589,120]
[325195886,1714572669677,-500.0,0.0005589,120]
[325195887,1714572669686,-500.0,0.0005589,120]
[325195888,1714572669696,-626.18,0.0005589,120]
[325195889,1714572669705,-894.54,0.0005589,120]
[325195890,1714572669715,-500.0,0.0005589,120]
[325195891,1714572669724,-4028.05,0.0005589,120]
[325195892,1714572669733,-500.0,0.0005589,120]
[325195893,1714572669743,-500.0,0.0005589,120]
[325195894,1714572669752,-2976.84,0.0005589,120]
[325195895,1714572669762,-500.0,0.0005589,120]
[325195896,1714572669771,-500.0,0.0005589,120]
[325195897,1714572669780,-500.0,0.0005589,120]
[325195898,1714572669789,-500.0,0.0005589,120]
[325195899,1714572669799,-1523.39,0.0005589,120]
[325195900,1714572669808,-500.0,0.0005589,120]
[325195901,1714572669817,-500.0,0.0005589,120]
[325195902,1714572669827,-151.0,0.00055973,120]
[325195903,1714572669837,-1000000.0,0.00056,30]
[325195904,1714572669846,-604.07512,0.00056068,2]
[325195905,1714572669856,-166.0,0.00056096,120]
[325195906,1714572669865,-150.0,0.0005626,66]
[325195907,1714572669874,-500.0,0.00056438,120]
[325195908,1714572669887,-500.0,0.00056438,120]
[325195909,1714572669896,-500.0,0.00056438,120]
[325195910,1714572669905,-500.0,0.00056438,120]
[325195911,1714572669914,-500.0,0.00056438,120]
[325195912,1714572669923,-500.0,0.00056438,120]
[325195913,1714572669932,-675.55,0.00056438,120]
[325195914,1714572669941,-500.0,0.00056438,120]
[325195915,1714572669950,-241.05772642,0.00056438,120]
[325195916,1714572669960,-500.0,0.00056438,120]
[325195917,1714572669969,-500.0,0.00056438,120]
[325195918,1714572669979,-500.0,0.00056438,120]
[325195919,1714572669988,-500.0,0.00056438,120]
[325195920,1714572669997,-500.0,0.00056438,120]
[325195921,1714572670007,-500.0,0.00056438,120]
[325195922,1714572670017,-627.3,0.00056438,120]
[325195923,1714572670026,-500.0,0.00056438,120]
[325195924,1714572670035,-500.0,0.00056438,120]
[325195925,1714572670044,-500.0,0.00056438,120]
[325195926,1714572670053,-500.0,0.00056438,120]
[325195927,1714572670063,-500.0,0.00056438,60]
[325195928,1714572670072,-500.0,0.00056438,120]
[325195929,1714572670081,-500.0,0.00056438,120]
[325195930,1714572670090,-981.62,0.00056438,120]
[325195931,1714572670100,-500.0,0.00056438,120]
[325195932,1714572670109,-450.45643041,0.00056438,120]
[325195933,1714572670118,-1156.78,0.00056438,120]
[325195934,1714572670127,-615.44,0.00056438,120]
[325195935,1714572670139,-605.91,0.00056438,120]
[325195936,1714572670149,-500.0,0.00056438,120]
[325195937,1714572670158,-500.0,0.00056438,120]
[325195938,1714572670172,-500.0,0.00056438,120]
[325195939,1714572670181,-500.0,0.00056438,120]
[325195940,1714572670191,-500.0,0.00056438,120]
[325195941,1714572670200,-500.0,0.00056438,120]
[325195942,1714572670210,-1193.27,0.00056438,120]
[325195943,1714572670219,-500.0,0.00056438,120]
[325195944,1714572670229,-500.0,0.00056438,120]
[325195945,1714572670239,-514.23066112,0.00056438,120]
[325195946,1714572670250,-500.0,0.00056438,120]
[325195947,1714572670259,-283.60326409,0.00056438,120]
[325195948,1714572670269,-500.0,0.00056438,120]
[325195949,1714572670278,-500.0,0.00056438,120]
[325195950,1714572670287,-500.0,0.00056438,120]
[325195951,1714572670296,-500.0,0.00056438,120]
[325195952,1714572670306,-500.0,0.00056438,120]
[325195953,1714572670315,-500.0,0.00056438,120]
[325195954,1714572670325,-500.0,0.00056438,120]
[325195955,1714572670334,-501.17552555,0.00056438,120]
[325195956,1714572670345,-500.0,0.00056438,120]
[325195957,1714572670354,-535.92,0.00056438,120]
[325195958,1714572670363,-500.0,0.00056438,120]
[325195959,1714572670374,-500.0,0.00056438,120]
[325195960,1714572670383,-500.0,0.00056438,120]
[325195961,1714572670394,-623.71,0.00056438,120]
[325195962,1714572670404,-500.0,0.00056438,120]
[325195963,1714572670413,-500.0,0.00056438,120]
[325195964,1714572670423,-500.0,0.00056438,120]
[325195965,1714572670432,-500.0,0.00056438,120]
[325195966,1714572670441,-500.0,0.00056438,120]
[325195967,1714572670451,-500.0,0.00056438,120]
[325195968,1714572670461,-500.0,0.00056438,120]
[325195969,1714572670472,-500.0,0.00056438,120]
[325195970,1714572670482,-815.15,0.00056438,120]
[325195971,1714572670491,-500.0,0.00056438,120]
[325195972,1714572670501,-500.0,0.00056438,30]
[325195973,1714572670511,-587.94,0.00056438,120]
[325195974,1714572670520,-500.0,0.00056438,2]
[325195975,1714572670529,-500.0,0.00056438,120]
[325195976,1714572670538,-500.0,0.00056438,120]
[325195977,1714572670547,-500.0,0.00056438,120]
[325195978,1714572670557,-1302.55,0.00056438,120]
[325195979,1714572670566,-500.0,0.00056438,120]
[325195980,1714572670575,-500.0,0.00056438,120]
[325195981,1714572670585,-500.0,0.00056438,120]
[325195982,1714572670594,-524.03,0.00056438,120]
[325195983,1714572670603,-500.0,0.00056438,120]
[325195984,1714572670612,-500.0,0.00056438,120]
[325195985,1714572670622,-500.0,0.00056438,120]
[325195986,1714572670631,-335.33380821,0.00056438,120]
[325195987,1714572670642,-549.97,0.00056438,120]
[325195988,1714572670651,-1645.04,0.00056438,120]
[325195989,1714572670661,-500.0,0.00056438,120]
[325195990,1714572670670,-500.0,0.00056438,120]
[325195991,1714572670679,-500.0,0.00056438,120]
[325195992,1714572670689,-500.0,0.00056438,120]
[325195993,1714572670698,-500.0,0.00056438,120]
[325195994,1714572670708,-965.17,0.00056438,120]
[325195995,1714572670717,-1276.34,0.00056438,120]
[325195996,1714572670727,-500.0,0.00056438,120]
[325195997,1714572670736,-500.0,0.00056438,120]
[325195998,1714572670746,-548.5,0.00056438,120]
[325195999,1714572670756,-642.27581446,0.00056438,120]
[325196000,1714572670766,-2762.03,0.00056438,120]
[325196001,1714572670776,-500.0,0.00056438,120]
[325196002,1714572670786,-700.99,0.00056438,120]
[325196003,1714572670795,-500.0,0.00056438,120]
[325196004,1714572670805,-1059.71,0.00056438,120]
[325196005,1714572670814,-911.27,0.00056438,120]
[325196006,1714572670823,-500.0,0.00056438,120]
[325196007,1714572670833,-1000.0,0.00056438,120]
[325196008,1714572670843,-500.0,0.00056438,120]
[325196009,1714572670853,-500.0,0.00056438,120]
[325196010,1714572670862,-500.0,0.00056438,120]
[325196011,1714572670872,-500.0,0.00056438,120]
[325196012,1714572670881,-501.36513364,0.00056438,120]
[325196013,1714572670893,-500.0,0.00056438,120]
[325196014,1714572670902,-500.0,0.00056438,120]
[325196015,1714572670911,-500.0,0.00056438,120]
[325196016,1714572670921,-500.0,0.00056438,120]
[325196017,1714572670930,-500.0,0.00056438,120]
[325196018,1714572670940,-500.0,0.00056438,120]
[325196019,1714572670949,-500.0,0.00056438,120]
[325196020,1714572670959,-501.13408567,0.00056438,120]
[325196021,1714572670969,-874.24,0.00056438,120]
[325196022,1714572670984,-500.0,0.00056438,120]
[325196023,1714572670994,-500.0,0.00056438,2]
[325196024,1714572671003,-500.0,0.00056438,120]
[325196025,1714572671012,-626.22634825,0.00056438,120]
[325196026,1714572671022,-500.0,0.00056438,120]
[325196027,1714572671031,-500.0,0.00056438,120]
[325196028,1714572671040,-4565.84,0.00056438,120]
[325196029,1714572671050,-500.0,0.00056438,120]
[325196030,1714572671059,-500.0,0.00056438,120]
[325196031,1714572671069,-546.04072811,0.00056438,120]
[325196032,1714572671078,-500.0,0.00056438,120]
[325196033,1714572671088,-5396.39,0.00056438,120]
[325196034,1714572671098,-500.0,0.00056438,120]
[325196035,1714572671107,-500.0,0.00056438,120]
[325196036,1714572671116,-523.06,0.00056438,120]
[325196037,1714572671125,-500.0,0.00056438,120]
[325196038,1714572671136,-500.0,0.00056438,120]
[325196039,1714572671146,-500.0,0.00056438,120]
[325196040,1714572671155,-519.47,0.00056438,120]
[325196041,1714572671166,-300.0,0.00056438,2]
[325196042,1714572671179,-500.0,0.00056438,120]
[325196043,1714572671188,-500.0,0.00056438,120]
[325196044,1714572671198,-781.51,0.00056438,120]
[325196045,1714572671207,-500.0,0.00056438,120]
[325196046,1714572671219,-500.0,0.00056438,120]
[325196047,1714572671229,-500.0,0.00056438,120]
[325196048,1714572671239,-500.0,0.00056438,120]
[325196049,1714572671249,-670.21,0.00056438,120]
[325196050,1714572671259,-500.0,0.00056438,120]
[325196051,1714572671269,-500.0,0.00056438,120]
[325196052,1714572671281,-500.0,0.00056438,120]
[325196053,1714572671290,-699.57,0.00056438,120]
[325196054,1714572671300,-500.0,0.00056438,120]
[325196055,1714572671310,-502.95646567,0.00056438,120]
[325196056,1714572671319,-553.84,0.00056438,120]
[325196057,1714572671328,-500.0,0.00056438,120]
[325196058,1714572671337,-500.0,0.00056438,120]
[325196059,1714572671347,-500.70258277,0.00056438,120]
[325196060,1714572671357,-500.0,0.00056438,120]
[325196061,1714572671366,-500.0,0.00056438,120]
[325196062,1714572671376,-500.0,0.00056438,120]
[325196063,1714572671386,-500.0,0.00056438,120]
[325196064,1714572671395,-500.0,0.00056438,120]
[325196065,1714572671404,-500.0,0.00056438,120]
[325196066,1714572671414,-500.0,0.00056438,120]
[325196067,1714572671423,-670.01,0.00056438,120]
[325196068,1714572671432,-271.99277122,0.00056438,120]
[325196069,1714572671442,-951.34,0.00056438,2]
[325196070,1714572671451,-735.78,0.00056438,120]
[325196071,1714572671461,-500.0,0.00056438,120]
[325196072,1714572671470,-300.0,0.00056438,7]
[325196073,1714572671480,-500.0,0.00056438,120]
[325196074,1714572671489,-500.0,0.00056438,120]
[325196075,1714572671498,-500.0,0.00056438,120]
[325196076,1714572671507,-500.0,0.00056438,120]
[325196077,1714572671517,-500.0,0.00056438,120]
[325196078,1714572671526,-848.19,0.00056438,120]
[325196079,1714572671535,-500.0,0.00056438,120]
[325196080,1714572671544,-500.0,0.00056438,120]
[325196081,1714572671554,-500.0,0.00056438,120]
[325196082,1714572671563,-500.0,0.00056438,120]
[325196083,1714572671572,-168.83582934,0.00056438,120]
[325196084,1714572671582,-500.0,0.00056438,120]
[325196085,1714572671591,-501.20557834,0.00056438,120]
[325196086,1714572671600,-500.0,0.00056438,120]
[325196087,1714572671610,-500.0,0.00056438,120]
[325196088,1714572671619,-500.0,0.00056438,120]
[325196089,1714572671629,-500.0,0.00056438,120]
[325196090,1714572671638,-500.0,0.00056438,120]
[325196091,1714572671648,-1182.29,0.00056438,120]
[325196092,1714572671746,-500.0,0.00056438,120]
[325196093,1714572671769,-1042.65,0.00056438,120]
[325196094,1714572671778,-500.0,0.00056438,120]
[325196095,1714572671787,-500.0,0.00056438,120]
[325196096,1714572671797,-500.0,0.00056438,120]
[325196097,1714572671806,-592.11,0.00056438,120]
[325196098,1714572671816,-500.0,0.00056438,120]
[325196099,1714572671825,-500.0,0.00056438,120]
[325196100,1714572671834,-500.0,0.00056438,120]
[325196101,1714572671843,-500.0,0.00056438,120]
[325196102,1714572671852,-1000.0,0.00056438,120]
[325196103,1714572671861,-500.0,0.00056438,120]
[325196104,1714572671871,-500.0,0.00056438,120]
[325196105,1714572671880,-1839.53,0.00056438,120]
[325196106,1714572671891,-500.0,0.00056438,120]
[325196107,1714572671900,-500.0,0.00056438,120]
[325196108,1714572671910,-500.0,0.00056438,120]
[325196109,1714572671920,-733.5,0.00056438,120]
[325196110,1714572671929,-500.0,0.00056438,120]
[325196111,1714572671939,-500.0,0.00056438,120]
[325196112,1714572671948,-283.30929255,0.00056438,120]
[325196113,1714572671958,-500.0,0.00056438,120]
[325196114,1714572671967,-500.0,0.00056438,120]
[325196115,1714572671977,-500.0,0.00056438,120]
[325196116,1714572671986,-500.0,0.00056438,120]
[325196117,1714572671996,-500.0,0.00056438,120]
[325196118,1714572672005,-500.0,0.00056438,120]
[325196119,1714572672014,-500.0,0.00056438,120]
[325196120,1714572672024,-1073.97,0.00056438,120]
[325196121,1714572672033,-1287.33,0.00056438,120]
[325196122,1714572672043,-508.8122228,0.00056438,120]
[325196123,1714572672051,-500.0,0.00056438,120]
[325196124,1714572672061,-563.35,0.00056438,120]
[325196125,1714572672072,-500.0,0.00056438,120]
[325196126,1714572672082,-500.0,0.00056438,120]
[325196127,1714572672093,-500.0,0.00056438,120]
[325196128,1714572672103,-500.0,0.00056438,120]
[325196129,1714572672112,-500.0,0.00056438,120]
[325196130,1714572672122,-912.09,0.00056438,120]
[325196131,1714572672131,-500.0,0.00056438,120]
[325196132,1714572672145,-500.0,0.00056438,3]
[325196133,1714572672154,-500.0,0.00056438,120]
[325196134,1714572672164,-500.0,0.00056438,120]
[325196135,1714572672174,-500.0,0.00056438,120]
[325196136,1714572672186,-500.0,0.00056438,120]
[325196137,1714572672195,-500.0,0.00056438,120]
[325196138,1714572672204,-500.0,0.00056438,120]
[325196139,1714572672215,-500.0,0.00056438,120]
[325196140,1714572672225,-792.53,0.00056438,120]
[325196141,1714572672234,-511.91,0.00056438,120]
[325196142,1714572672243,-500.0,0.00056438,120]
[325196143,1714572672255,-1488.99,0.00056438,120]
[325196144,1714572672265,-775.37,0.00056438,120]
[325196145,1714572672275,-1779.15,0.00056438,120]
[325196146,1714572672284,-814.32,0.00056438,7]
[325196147,1714572672293,-500.0,0.00056438,120]
[325196148,1714572672304,-500.0,0.00056438,120]
[325196149,1714572672313,-500.0,0.00056438,120]
[325196150,1714572672322,-500.0,0.00056438,120]
[325196151,1714572672332,-500.0,0.00056438,120]
[325196152,1714572672341,-500.0,0.00056438,120]
[325196153,1714572672351,-749.91,0.00056438,120]
[325196154,1714572672360,-515.08,0.00056438,120]
[325196155,1714572672370,-501.87953849,0.00056438,120]
[325196156,1714572672380,-1107.24,0.00056438,120]
[325196157,1714572672393,-500.0,0.00056438,120]
[325196158,1714572672403,-500.0,0.00056438,120]
[325196159,1714572672412,-397.13468559,0.00056438,120]
[325196160,1714572672421,-500.0,0.00056438,120]
[325196161,1714572672430,-500.0,0.00056438,120]
[325196162,1714572672439,-618.34062647,0.00056438,120]
[325196163,1714572672449,-989.44,0.00056438,120]
[325196164,1714572672458,-500.0,0.00056438,120]
[325196165,1714572672467,-672.45,0.00056438,120]
[325196166,1714572672476,-546.87,0.00056438,60]
[325196167,1714572672486,-500.0,0.00056438,120]
[325196168,1714572672495,-500.0,0.00056438,120]
[325196169,1714572672504,-500.0,0.00056438,120]
[325196170,1714572672514,-15331.91,0.00056438,120]
[325196171,1714572672523,-500.0,0.00056438,120]
[325196172,1714572672532,-500.0,0.00056438,120]
[325196173,1714572672541,-500.0,0.00056438,120]
[325196174,1714572672550,-500.0,0.00056438,120]
[325196175,1714572672560,-1460.27,0.00056438,120]
[325196176,1714572672569,-500.0,0.00056438,120]
[325196177,1714572672578,-500.0,0.00056438,120]
[325196178,1714572672587,-500.96041443,0.00056438,120]
[325196179,1714572672596,-500.0,0.00056438,120]
[325196180,1714572672606,-500.0,0.00056438,120]
[325196181,1714572672615,-3286.58,0.00056438,2]
[325196182,1714572672624,-500.0,0.00056438,120]
[325196183,1714572672633,-533.04000945,0.00056438,120]
[325196184,1714572672646,-500.0,0.00056438,120]
[325196185,1714572672656,-671.46,0.00056438,120]
[325196186,1714572672665,-500.0,0.00056438,120]
[325196187,1714572672674,-500.0,0.00056438,120]